fUST/lending_fUST_20240921
["ID","MTS","AMOUNT","RATE_DAILY","PERIOD"]
[338812553,1726924251527,-500.0,0.00014378,2]
[338812554,1726924251537,-500.0,0.00014378,2]
[338812555,1726924251546,-500.0,0.00014378,2]
[338812556,1726924251555,-500.0,0.00014378,2]
[338812557,1726924251564,-500.0,0.00014378,2]
[338812558,1726924251575,-500.0,0.00014378,2]
[338812559,1726924251584,-500.0,0.00014378,2]
[338812560,1726924251593,-500.0,0.00014378,2]
[338812561,1726924251603,-500.0,0.00014378,2]
[338812562,1726924251612,-349.51,0.00014378,2]
[338812563,1726924251621,-177.52,0.00014378,2]
[338812564,1726924251631,-521.54,0.00014378,2]
[338812565,1726924251640,-500.0,0.00014378,2]
[338812566,1726924251649,-500.0,0.00014378,2]
[338812567,1726924251659,-500.0,0.00014378,2]
[338812568,1726924251668,-417.97,0.00014378,2]
[338812569,1726924251679,-244.3,0.00014378,2]
[338812570,1726924251690,-502.78105398,0.00014378,2]
[338812571,1726924251699,-500.0,0.00014378,2]
[338812572,1726924251710,-500.0,0.00014378,2]
[338812573,1726924251720,-563.74,0.00014378,2]
[338812574,1726924251732,-500.0,0.00014378,2]
[338812575,1726924251744,-500.0,0.00014378,2]
[338812576,1726924251756,-500.0,0.00014378,2]
[338812577,1726924251765,-503.67001357,0.00014378,2]
[338812578,1726924251775,-151.0,0.00014378,2]
[338812579,1726924251785,-1612.19724,0.00014378,2]
[338812580,1726924251794,-1612.19724,0.00014378,2]
[338812581,1726924251803,-151.0,0.00014378,2]
[338812582,1726924251813,-151.0,0.00014378,2]
[338812583,1726924251822,-151.0,0.00014378,2]
[338812584,1726924251832,-151.0,0.00014378,2]
[338812585,1726924251842,-617.081594,0.00014378,2]
[338812586,1726924251852,-474.87448,0.00014378,2]
[338812587,1726924251861,-617.081594,0.00014378,2]
[338812588,1726924251871,-474.87448,0.00014378,2]
[338812589,1726924251880,-151.0,0.00014378,2]
[338812590,1726924251890,-198.449634,0.00014378,2]
[338812591,1726924251900,-198.449634,0.00014378,2]
[338812592,1726924251910,-151.0,0.00014378,2]
[338812593,1726924251919,-151.0,0.00014378,2]
[338812594,1726924251931,-263.055659,0.00014378,2]
[338812595,1726924251941,-263.055659,0.00014378,2]
[338812596,1726924251953,-1305.675898,0.00014378,2]
[338812597,1726924251962,-1305.675898,0.00014378,2]
[338812598,1726924251972,-151.0,0.00014378,2]
[338812599,1726924251983,-974.882643,0.00014378,2]
[338812600,1726924251995,-974.882643,0.00014378,2]
[338812601,1726924252005,-151.0,0.00014378,2]
[338812602,1726924252015,-656.224211,0.00014378,2]
[338812603,1726924252025,-656.224211,0.00014378,2]
[338812604,1726924252034,-547.145498,0.00014378,2]
[338812605,1726924252046,-547.145498,0.00014378,2]
[338812606,1726924252057,-896.485706,0.00014378,2]
[338812607,1726924252066,-896.485706,0.00014378,2]
[338812608,1726924252076,-151.0,0.00014378,2]
[338812609,1726924252085,-155.993802,0.00014378,2]
[338812610,1726924252094,-155.993802,0.00014378,2]
[338812611,1726924252104,-151.0,0.00014378,2]
[338812612,1726924252113,-749.79205,0.00014378,2]
[338812613,1726924252123,-478.879763,0.00014378,2]
[338812614,1726924252132,-192.951899,0.00014378,2]
[338812615,1726924252142,-749.79205,0.00014378,2]
[338812616,1726924252154,-192.951899,0.00014378,2]
[338812617,1726924252164,-478.879763,0.00014378,2]
[338812618,1726924252174,-493.26750583,0.00014387,2]
[338812619,1726924252183,-500.0,0.00014387,2]
[338812620,1726924252193,-500.0,0.00014387,2]
[338812621,1726924252203,-500.0,0.00014387,2]
[338812622,1726924252212,-500.0,0.00014387,2]
[338812623,1726924252223,-500.0,0.00014387,2]
[338812624,1726924252232,-500.0,0.00014387,2]
[338812625,1726924252241,-500.0,0.00014387,2]
[338812626,1726924252251,-309.14842164,0.00014387,2]
[338812627,1726924252260,-608.98755926,0.00014387,2]
[338812628,1726924252270,-160.0,0.00014418,2]
[338812629,1726924252280,-1000.0,0.000145,2]
[338812630,1726924252290,-577.966,0.00014532,2]
[338812631,1726924252300,-205.0,0.0001454,2]
[338812632,1726924252309,-153.0,0.000146,2]
[338812633,1726924252318,-153.0,0.000146,2]
[338812634,1726924252329,-12376.7068195,0.00014616,2]
[338812635,1726924252340,-12376.7068195,0.00014626,2]
[338812636,1726924252350,-489.58,0.00014626,2]
[338812637,1726924252359,-500.0,0.00014626,2]
[338812638,1726924252368,-500.0,0.00014626,2]
[338812639,1726924252378,-545.9,0.00014626,2]
[338812640,1726924252387,-500.0,0.00014626,2]
[338812641,1726924252397,-551.19,0.00014626,2]
[338812642,1726924252406,-14291.56,0.00014626,2]
[338812643,1726924252416,-2088.63,0.00014626,2]
[338812644,1726924252426,-500.0,0.00014626,2]
[338812645,1726924252435,-1159.9521126,0.0001463,2]
[338812646,1726924252446,-348.76,0.00014635,2]
[338812647,1726924252455,-560.88,0.00014636,2]
[338812648,1726924252465,-500.0,0.00014636,2]
[338812649,1726924252474,-500.0,0.00014636,2]
[338812650,1726924252483,-500.0,0.00014636,2]
[338812651,1726924252492,-500.0,0.00014636,2]
[338812652,1726924252502,-500.0,0.00014636,2]
[338812653,1726924252512,-500.0,0.00014636,2]
[338812654,1726924252521,-911.33,0.00014636,2]
[338812655,1726924252531,-500.0,0.00014636,2]
[338812656,1726924252540,-164.38,0.00014636,2]
[338812657,1726924252550,-500.0,0.00014636,2]
[338812658,1726924252559,-500.0,0.00014636,2]
[338812659,1726924252568,-662.09,0.00014636,2]
[338812660,1726924252578,-500.0,0.00014636,2]
[338812661,1726924252587,-711.92,0.00014636,2]
[338812662,1726924252596,-500.0,0.00014636,2]
[338812663,1726924252605,-500.0,0.00014636,2]
[338812664,1726924252614,-500.0,0.00014636,2]
[338812665,1726924252624,-500.0,0.00014636,2]
[338812666,1726924252633,-263.39067922,0.00014636,2]
[338812667,1726924252643,-500.0,0.00014636,2]
[338812668,1726924252653,-500.0,0.00014636,2]
[338812669,1726924252662,-339.6,0.00014636,2]
[338812670,1726924252671,-500.0,0.00014636,2]
[338812671,1726924252680,-500.0,0.00014636,2]
[338812672,1726924252689,-455.70222679,0.00014636,2]
[338812673,1726924252701,-283.96,0.00014636,2]
[338812674,1726924252712,-500.0,0.00014636,2]
[338812675,1726924252723,-339.05,0.00014636,2]
[338812676,1726924252733,-500.0,0.00014636,2]
[338812677,1726924252743,-500.0,0.00014636,2]
[338812678,1726924252754,-500.0,0.00014636,2]
[338812679,1726924252764,-500.0,0.00014636,2]
[338812680,1726924252773,-500.0,0.00014636,2]
[338812681,1726924252783,-500.0,0.00014636,2]
[338812682,1726924252792,-509.97,0.00014636,2]
[338812683,1726924252803,-151.0,0.00014636,2]
[338812684,1726924252814,-181.06567,0.00014636,2]
[338812685,1726924252824,-487.93919768,0.00014636,2]
[338812686,1726924252833,-500.0,0.00014636,2]
[338812687,1726924252843,-500.0,0.00014636,2]
[338812688,1726924252852,-500.0,0.00014636,2]
[338812689,1726924252862,-500.0,0.00014636,2]
[338812690,1726924252871,-500.0,0.00014636,2]
[338812691,1726924252882,-500.0,0.00014636,2]
[338812692,1726924252893,-500.0,0.00014636,2]
[338812693,1726924252903,-503.18421156,0.00014636,2]
[338812694,1726924252912,-500.0,0.00014636,2]
[338812695,1726924252922,-500.0,0.00014636,2]
[338812696,1726924252931,-341.857273,0.00014636,2]
[338812697,1726924252941,-341.857273,0.00014636,2]
[338812698,1726924252950,-500.0,0.00014636,2]
[338812699,1726924252960,-500.0,0.00014636,2]
[338812700,1726924252969,-500.0,0.00014636,2]
[338812701,1726924252979,-500.0,0.00014636,2]
[338812702,1726924252989,-500.0,0.00014636,2]
[338812703,1726924252998,-500.0,0.00014636,2]
[338812704,1726924253012,-500.0,0.00014636,2]
[338812705,1726924253021,-296.91064081,0.00014636,2]
[338812706,1726924253031,-500.0,0.00014636,2]
[338812707,1726924253040,-500.0,0.00014636,2]
[338812708,1726924253050,-500.0,0.00014636,2]
[338812709,1726924253060,-500.0,0.00014636,2]
[338812710,1726924253069,-500.0,0.00014636,2]
[338812711,1726924253079,-500.0,0.00014636,2]
[338812712,1726924253088,-477.62,0.00014636,2]
[338812713,1726924253098,-500.0,0.00014636,2]
[338812714,1726924253108,-500.0,0.00014636,2]
[338812715,1726924253117,-500.0,0.00014636,2]
[338812716,1726924253127,-400.04038946,0.00014636,2]
[338812717,1726924253136,-500.0,0.00014636,2]
[338812718,1726924253147,-546.15775384,0.00014636,2]
[338812719,1726924253157,-500.0,0.00014636,2]
[338812720,1726924253166,-500.0,0.00014636,2]
[338812721,1726924253175,-500.0,0.00014636,2]
[338812722,1726924253186,-342.28453597,0.00014636,2]
[338812723,1726924253195,-503.59200059,0.00014636,2]
[338812724,1726924253204,-534.94,0.00014636,2]
[338812725,1726924253213,-500.0,0.00014636,2]
[338812726,1726924253224,-503.42739303,0.00014636,2]
[338812727,1726924253233,-500.0,0.00014636,2]
[338812728,1726924253242,-500.0,0.00014636,2]
[338812729,1726924253252,-500.0,0.00014636,2]
[338812730,1726924253261,-500.0,0.00014636,2]
[338812731,1726924253270,-402.89983223,0.00014636,2]
[338812732,1726924253280,-500.0,0.00014636,2]
[338812733,1726924253289,-1452.5,0.00014636,2]
[338812734,1726924253298,-276.73375857,0.00014636,2]
[338812735,1726924253307,-500.0,0.00014636,2]
[338812736,1726924253316,-500.0,0.00014636,2]
[338812737,1726924253326,-500.0,0.00014636,2]
[338812738,1726924253335,-500.0,0.00014636,2]
[338812739,1726924253344,-692.29,0.00014636,2]
[338812740,1726924253354,-500.0,0.00014636,2]
[338812741,1726924253364,-500.0,0.00014636,2]
[338812742,1726924253373,-500.0,0.00014636,2]
[338812743,1726924253383,-500.0,0.00014636,2]
[338812744,1726924253392,-506.57534725,0.00014636,2]
[338812745,1726924253401,-500.0,0.00014636,2]
[338812746,1726924253411,-500.0,0.00014636,2]
[338812747,1726924253420,-500.0,0.00014636,2]
[338812748,1726924253429,-500.0,0.00014636,2]
[338812749,1726924253438,-500.0,0.00014636,2]
[338812750,1726924253447,-552.07450494,0.00014636,2]
[338812751,1726924253456,-503.26031961,0.00014636,2]
[338812752,1726924253466,-500.0,0.00014636,2]
[338812753,1726924253475,-285.19036735,0.00014636,2]
[338812754,1726924253667,-214.80963265,0.00014636,2]
[338812755,1726924253677,-500.0,0.00014636,2]
[338812756,1726924253686,-502.02661187,0.00014636,2]
[338812757,1726924253695,-312.23486903,0.00014636,2]
[338812758,1726924253704,-500.0,0.00014636,2]
[338812759,1726924253714,-500.0,0.00014636,2]
[338812760,1726924253724,-500.0,0.00014636,2]
[338812761,1726924253733,-500.0,0.00014636,2]
[338812762,1726924253743,-500.0,0.00014636,2]
[338812763,1726924253752,-500.0,0.00014636,2]
[338812764,1726924253762,-500.0,0.00014636,2]
[338812765,1726924253772,-500.0,0.00014636,2]
[338812766,1726924253782,-500.0,0.00014636,2]
[338812767,1726924253791,-611.33,0.00014636,2]
[338812768,1726924253801,-500.0,0.00014636,2]
[338812769,1726924253811,-500.0,0.00014636,2]
[338812770,1726924253823,-500.0,0.00014636,2]
[338812771,1726924253833,-529.68,0.00014636,2]
[338812772,1726924253843,-500.0,0.00014636,2]
[338812773,1726924253853,-500.0,0.00014636,2]
[338812774,1726924253862,-500.0,0.00014636,2]
[338812775,1726924253872,-500.0,0.00014636,2]
[338812776,1726924253882,-500.0,0.00014636,2]
[338812777,1726924253891,-500.0,0.00014636,2]
[338812778,1726924253901,-500.0,0.00014636,2]
[338812779,1726924253910,-500.0,0.00014636,2]
[338812780,1726924253919,-500.0,0.00014636,2]
[338812781,1726924253929,-500.0,0.00014636,2]
[338812782,1726924253939,-500.0,0.00014636,2]
[338812783,1726924253948,-512.71212299,0.00014636,2]
[338812784,1726924253958,-509.69,0.00014636,2]
[338812785,1726924253967,-500.73302446,0.00014636,2]
[338812786,1726924253976,-500.0,0.00014636,2]
[338812787,1726924253985,-500.0,0.00014636,2]
[338812788,1726924253995,-500.0,0.00014636,2]
[338812789,1726924254005,-500.0,0.00014636,2]
[338812790,1726924254013,-221.39641309,0.00014636,2]
[338812791,1726924254024,-500.0,0.00014636,2]
[338812792,1726924254033,-500.0,0.00014636,2]
[338812793,1726924254043,-500.0,0.00014636,2]
[338812794,1726924254052,-500.0,0.00014636,2]
[338812795,1726924254061,-500.0,0.00014636,2]
[338812796,1726924254071,-500.0,0.00014636,2]
[338812797,1726924254081,-500.0,0.00014636,2]
[338812798,1726924254090,-500.0,0.00014636,2]
[338812799,1726924254100,-500.0,0.00014636,2]
[338812800,1726924254109,-500.0,0.00014636,2]
[338812801,1726924254119,-500.0,0.00014636,2]
[338812802,1726924254128,-500.0,0.00014636,2]
[338812803,1726924254138,-500.0,0.00014636,2]
[338812804,1726924254150,-500.0,0.00014636,2]
[338812805,1726924254160,-500.0,0.00014636,2]
[338812806,1726924254169,-500.0,0.00014636,2]
[338812807,1726924254179,-574.32895602,0.00014636,2]
[338812808,1726924254190,-500.0,0.00014636,2]
[338812809,1726924254200,-500.0,0.00014636,2]
[338812810,1726924254212,-500.0,0.00014636,2]
[338812811,1726924254224,-500.0,0.00014636,2]
[338812812,1726924254234,-500.0,0.00014642,2]
[338812813,1726924254246,-500.0,0.00014642,2]
[338812814,1726924254255,-636.96,0.00014642,2]
[338812815,1726924254265,-500.0,0.00014642,2]
[338812816,1726924254275,-500.0,0.00014642,2]
[338812817,1726924254285,-500.0,0.00014642,2]
[338812818,1726924254295,-500.0,0.00014642,2]
[338812819,1726924254304,-411.3,0.00014642,2]
[338812820,1726924254315,-611.68,0.00014642,2]
[338812821,1726924254324,-500.0,0.00014642,2]
[338812822,1726924254334,-373.4,0.00014642,2]
[338812823,1726924254344,-500.0,0.00014652,2]
[338812824,1726924254353,-500.0,0.00014652,2]
[338812825,1726924254362,-864.53,0.00014652,2]
[338812826,1726924254372,-500.0,0.00014652,2]
[338812827,1726924254381,-567.08,0.00014652,2]
[338812828,1726924254391,-594.58,0.00014652,2]
[338812829,1726924254401,-500.0,0.00014652,2]
[338812830,1726924254410,-500.0,0.00014652,2]
[338812831,1726924254419,-500.0,0.00014652,2]
[338812832,1726924254429,-621.94,0.00014652,2]
[338812833,1726924254437,-500.0,0.00014652,2]
[338812834,1726924254446,-500.0,0.00014652,2]
[338812835,1726924254457,-373.13,0.00014652,2]
[338812836,1726924254467,-500.0,0.00014652,2]
[338812837,1726924254477,-500.0,0.00014652,2]
[338812838,1726924254486,-500.0,0.00014652,2]
[338812839,1726924254496,-582.87650935,0.00014652,2]
[338812840,1726924254506,-318.56796657,0.00014652,2]
[338812841,1726924254517,-500.0,0.00014652,2]
[338812842,1726924254527,-500.0,0.00014652,2]
[338812843,1726924254536,-1198.99,0.00014652,2]
[338812844,1726924254546,-500.0,0.00014652,2]
[338812845,1726924254556,-500.0,0.00014652,2]
[338812846,1726924254566,-500.0,0.00014652,2]
[338812847,1726924254576,-379.02127384,0.00014652,2]
[338812848,1726924254585,-500.0,0.00014652,2]
[338812849,1726924254594,-571.06,0.00014652,2]
[338812850,1726924254606,-500.0,0.00014652,2]
[338812851,1726924254617,-500.0,0.00014652,2]
[338812852,1726924254627,-328.2,0.00014652,2]
[338812853,1726924254638,-500.0,0.00014661,2]
[338812854,1726924254649,-1191.05,0.000148,2]
[338812855,1726924254659,-150.0,0.00014832,2]
[338812856,1726924254668,-500.0,0.000149,2]
[338812857,1726924254677,-500.0,0.000149,2]
[338812858,1726924254829,-545.9,0.000149,2]
[338812859,1726924254839,-500.0,0.000149,2]
[338812860,1726924254851,-551.19,0.000149,2]
[338812861,1726924254860,-14291.56,0.000149,2]
[338812862,1726924254869,-2088.63,0.000149,2]
[338812863,1726924254879,-198.11,0.000149,2]
[338812864,1726924254888,-560.88,0.0001491,2]
[338812865,1726924254897,-94.12372697,0.0001491,2]
[338812866,1726924254930,24900.0,0.00013077,2]
[338812867,1726924254985,-500.0,0.00014078,2]
[338812868,1726924254997,-500.0,0.00014088,2]
[338812869,1726924255006,-500.0,0.00014362,2]
[338812870,1726924255016,-500.0,0.00014636,2]
[338812871,1726924255026,-405.87627303,0.0001491,2]
[338812872,1726924255037,-233.87,0.0001491,2]
[338812873,1726924255047,-500.0,0.0001491,2]
[338812874,1726924255057,-500.0,0.0001491,2]
[338812875,1726924255066,-500.0,0.0001491,2]
[338812876,1726924255075,-911.33,0.0001491,2]
[338812877,1726924255084,-500.0,0.0001491,2]
[338812878,1726924255096,-500.0,0.0001491,2]
[338812879,1726924255107,-477.44,0.0001491,2]
[338812880,1726924255117,-662.09,0.0001491,2]
[338812881,1726924255127,-500.0,0.0001491,2]
[338812882,1726924255139,-711.92,0.0001491,2]
[338812883,1726924255152,-500.0,0.0001491,2]
[338812884,1726924255162,-500.0,0.0001491,2]
[338812885,1726924255171,-500.0,0.0001491,2]
[338812886,1726924255180,-500.0,0.0001491,2]
[338812887,1726924255190,-500.0,0.0001491,2]
[338812888,1726924255199,-500.0,0.0001491,2]
[338812889,1726924255208,-572.65261625,0.0001491,2]
[338812890,1726924255218,-296.11,0.0001491,2]
[338812891,1726924255227,-151.0,0.0001491,2]
[338812892,1726924255237,-234.445441,0.0001491,2]
[338812893,1726924255246,-151.0,0.0001491,2]
[338812894,1726924255255,-500.0,0.0001491,2]
[338812895,1726924255264,-295.1789539,0.0001491,2]
[338812896,1726924255273,-500.0,0.0001491,2]
[338812897,1726924255283,-500.0,0.0001491,2]
[338812898,1726924255292,-500.0,0.0001491,2]
[338812899,1726924255300,-500.0,0.0001491,2]
[338812900,1726924255309,-500.0,0.0001491,2]
[338812901,1726924255320,-173.393541,0.0001491,2]
[338812902,1726924255331,-613.624449,0.0001491,2]
[338812903,1726924255341,-173.393541,0.0001491,2]
[338812904,1726924255350,-613.624449,0.0001491,2]
[338812905,1726924255360,-151.0,0.0001491,2]
[338812906,1726924255370,-500.0,0.0001491,2]
[338812907,1726924255379,-500.0,0.0001491,2]
[338812908,1726924255389,-504.77628237,0.0001491,2]
[338812909,1726924255409,-504.94745652,0.0001491,2]
[338812910,1726924255421,-500.0,0.0001491,2]
[338812911,1726924255433,-500.0,0.0001491,2]
[338812912,1726924255445,-367.43,0.0001491,2]
[338812913,1726924255454,-234.37,0.0001491,2]
[338812914,1726924255464,-500.0,0.0001491,2]
[338812915,1726924255474,-500.0,0.0001491,2]
[338812916,1726924255483,-500.0,0.0001491,2]
[338812917,1726924255492,-500.0,0.0001491,2]
[338812918,1726924255503,-500.0,0.0001491,2]
[338812919,1726924255512,-500.0,0.0001491,2]
[338812920,1726924255521,-184.58191532,0.0001491,2]
[338812921,1726924255531,-500.0,0.0001491,2]
[338812922,1726924255541,-542.91417884,0.0001491,2]
[338812923,1726924255551,-337.67,0.0001491,2]
[338812924,1726924255561,-500.0,0.0001491,2]
[338812925,1726924255570,-500.0,0.0001491,2]
[338812926,1726924255580,-500.0,0.0001491,2]
[338812927,1726924255589,-534.94,0.0001491,2]
[338812928,1726924255599,-500.0,0.0001491,2]
[338812929,1726924255608,-500.0,0.0001491,2]
[338812930,1726924255617,-502.14783997,0.0001491,2]
[338812931,1726924255626,-500.0,0.0001491,2]
[338812932,1726924255635,-1452.5,0.0001491,2]
[338812933,1726924255645,-430.22,0.0001491,2]
[338812934,1726924255654,-500.0,0.0001491,2]
[338812935,1726924255664,-501.64530418,0.0001491,2]
[338812936,1726924255674,-692.29,0.0001491,2]
[338812937,1726924255683,-500.0,0.0001491,2]
[338812938,1726924255692,-440.64,0.0001491,2]
[338812939,1726924255702,-500.0,0.0001491,2]
[338812940,1726924255712,-500.0,0.0001491,2]
[338812941,1726924255722,-500.0,0.0001491,2]
[338812942,1726924255731,-205.38,0.0001491,2]
[338812943,1726924255741,-595.61,0.0001491,2]
[338812944,1726924255750,-500.0,0.0001491,2]
[338812945,1726924255760,-500.0,0.0001491,2]
[338812946,1726924255769,-500.0,0.0001491,2]
[338812947,1726924255779,-327.25579154,0.0001491,2]
[338812948,1726924255789,-541.4,0.0001491,2]
[338812949,1726924255799,-500.0,0.0001491,2]
[338812950,1726924255810,-500.0,0.0001491,2]
[338812951,1726924255820,-500.0,0.0001491,2]
[338812952,1726924255831,-586.03,0.0001491,2]
[338812953,1726924255840,-500.0,0.0001491,2]
[338812954,1726924255849,-500.0,0.0001491,2]
[338812955,1726924255859,-342.12,0.0001491,2]
[338812956,1726924255868,-500.0,0.0001491,2]
[338812957,1726924255879,-500.0,0.0001491,2]
[338812958,1726924255888,-500.0,0.0001491,2]
[338812959,1726924255897,-500.0,0.0001491,2]
[338812960,1726924255908,-500.0,0.0001491,2]
[338812961,1726924255918,-168.66,0.0001491,2]
[338812962,1726924255930,-500.0,0.0001491,2]
[338812963,1726924255942,-162.13,0.0001491,2]
[338812964,1726924255952,-500.0,0.0001491,2]
[338812965,1726924255961,-500.0,0.0001491,2]
[338812966,1726924255971,-500.0,0.0001491,2]
[338812967,1726924255980,-500.0,0.0001491,2]
[338812968,1726924255990,-325.24175017,0.0001491,2]
[338812969,1726924255999,-500.0,0.0001491,2]
[338812970,1726924256013,-151.0,0.0001491,2]
[338812971,1726924256022,-500.0,0.0001491,2]
[338812972,1726924256032,-500.0,0.0001491,2]
[338812973,1726924256041,-500.0,0.0001491,2]
[338812974,1726924256051,-155.993802,0.0001491,2]
[338812975,1726924256062,-500.0,0.0001491,2]
[338812976,1726924256073,-500.0,0.0001491,2]
[338812977,1726924256082,-155.993802,0.0001491,2]
[338812978,1726924256092,-500.0,0.0001491,2]
[338812979,1726924256102,-500.0,0.0001491,2]
[338812980,1726924256112,-500.0,0.0001491,2]
[338812981,1726924256121,-500.0,0.0001491,2]
[338812982,1726924256131,-151.0,0.0001491,2]
[338812983,1726924256141,-478.879763,0.0001491,2]
[338812984,1726924256154,-192.951899,0.0001491,2]
[338812985,1726924256164,-500.0,0.0001491,2]
[338812986,1726924256174,-500.0,0.0001491,2]
[338812987,1726924256183,-192.951899,0.0001491,2]
[338812988,1726924256193,-478.879763,0.0001491,2]
[338812989,1726924256205,-500.0,0.0001491,2]
[338812990,1726924256216,-500.0,0.0001491,2]
[338812991,1726924256226,-500.0,0.0001491,2]
[338812992,1726924256237,-500.0,0.0001491,2]
[338812993,1726924256247,-500.0,0.0001491,2]
[338812994,1726924256258,-151.0,0.00014915,2]
[338812995,1726924256268,-500.0,0.00014916,2]
[338812996,1726924256277,-500.0,0.00014916,2]
[338812997,1726924256289,-636.96,0.00014916,2]
[338812998,1726924256300,-614.92,0.00014916,2]
[338812999,1726924256310,-500.0,0.00014916,2]
[338813000,1726924256320,-154.18,0.00014916,2]
[338813001,1726924256330,-581.26,0.00014916,2]
[338813002,1726924256341,-611.68,0.00014916,2]
[338813003,1726924256352,-500.0,0.00014916,2]
[338813004,1726924256362,-500.0,0.00014926,2]
[338813005,1726924256372,-500.0,0.00014926,2]
[338813006,1726924256382,-864.53,0.00014926,2]
[338813007,1726924256391,-500.0,0.00014926,2]
[338813008,1726924256401,-567.08,0.00014926,2]
[338813009,1726924256410,-594.58,0.00014926,2]
[338813010,1726924256420,-500.0,0.00014926,2]
[338813011,1726924256429,-500.0,0.00014926,2]
[338813012,1726924256439,-412.28969922,0.00014926,2]
[338813013,1726924256449,-621.94,0.00014926,2]
[338813014,1726924256459,-500.0,0.00014926,2]
[338813015,1726924256469,-500.0,0.00014926,2]
[338813016,1726924256479,-500.0,0.00014926,2]
[338813017,1726924256489,-500.0,0.00014926,2]
[338813018,1726924256501,-500.0,0.00014926,2]
[338813019,1726924256512,-500.0,0.00014926,2]
[338813020,1726924256523,-500.0,0.00014926,2]
[338813021,1726924256533,-1198.99,0.00014926,2]
[338813022,1726924256544,-500.0,0.00014926,2]
[338813023,1726924256554,-500.0,0.00014926,2]
[338813024,1726924256564,-285.95029188,0.00014926,2]
[338813025,1726924256574,-500.0,0.00014926,2]
[338813026,1726924256584,-643.72,0.00014926,2]
[338813027,1726924256593,-240.472061,0.00014926,2]
[338813028,1726924256603,-240.472061,0.00014926,2]
[338813029,1726924256612,-151.0,0.00014926,2]
[338813030,1726924256626,-233.040417,0.00014926,2]
[338813031,1726924256637,-150.0,0.00014938,2]
[338813032,1726924256646,-524.0,0.00014938,2]
[338813033,1726924256656,-1216.0,0.00014938,2]
[338813034,1726924256666,-500.0,0.00014952,2]
[338813035,1726924256676,-609.59335374,0.00014952,2]
[338813036,1726924256687,-500.0,0.00014989,2]
[338813037,1726924256697,-500.0,0.00014989,2]
[338813038,1726924256707,-151.0,0.0001502,2]
[338813039,1726924256716,-151.0,0.0001502,2]
[338813040,1726924256726,-339.270884,0.0001502,2]
[338813041,1726924256736,-339.270884,0.0001502,2]
[338813042,1726924256746,-151.0,0.0001502,2]
[338813043,1726924256756,-151.0,0.0001502,2]
[338813044,1726924256766,-151.0,0.0001502,2]
[338813045,1726924256775,-151.0,0.0001502,2]
[338813046,1726924256786,-151.0,0.0001502,2]
[338813047,1726924256794,-164.880755,0.0001502,2]
[338813048,1726924256804,-181.097904,0.0001502,2]
[338813049,1726924256814,-151.0,0.0001502,2]
[338813050,1726924256823,-181.097904,0.0001502,2]
[338813051,1726924256832,-151.0,0.0001502,2]
[338813052,1726924256842,-151.0,0.0001502,2]